[Event "I.A Hrvatska šahovska liga"]
[Site "Veli Lošinj, Croatia"]
[Date "2024.10.05"]
[Round "1.9"]
[White "Doric, Darko"]
[Black "Paradzik, Berislav"]
[Result "1-0"]
[TimeControl "90 30 40 30"]
[WhiteFideId "14507200"]
[BlackFideId "14547147"]
[WhiteElo "2443"]
[BlackElo "2247"]

1. Nf3 {[%clk 01:30:57]} {[%emt 00:00:03]} Nf6 {[%clk 01:30:52]} {[%emt
00:00:08]} 2. g3 {[%clk 01:31:19]} {[%emt 00:00:08]} g6 {[%clk 01:31:06]}
{[%emt 00:00:17]} 3. b3 {[%clk 01:31:36]} {[%emt 00:00:12]} b6 {[%clk
01:27:49]} {[%emt 00:03:48]} 4. c4 {[%clk 01:31:34]} {[%emt 00:00:31]} c5
{[%clk 01:26:50]} {[%emt 00:01:29]} 5. Bg2 {[%clk 01:31:35]} {[%emt 00:00:29]}
Bb7 {[%clk 01:27:11]} {[%emt 00:00:10]} 6. Bb2 {[%clk 01:31:11]} {[%emt
00:00:53]} Bg7 {[%clk 01:26:01]} {[%emt 00:01:40]} 7. O-O {[%clk 01:31:09]}
{[%emt 00:00:32]} O-O {[%clk 01:20:44]} {[%emt 00:05:48]} 8. d4 {[%clk
01:23:58]} {[%emt 00:07:40]} cxd4 {[%clk 01:18:44]} {[%emt 00:02:30]} 9. Qxd4
{[%clk 01:23:28]} {[%emt 00:01:00]} Nh5 {[%clk 01:18:11]} {[%emt 00:01:03]} 10.
Qd2 {[%clk 01:23:52]} {[%emt 00:00:06]} Bxb2 {[%clk 01:17:32]} {[%emt
00:01:10]} 11. Qxb2 {[%clk 01:24:17]} {[%emt 00:00:05]} d6 {[%clk 01:17:05]}
{[%emt 00:00:57]} 12. Nc3 {[%clk 01:23:22]} {[%emt 00:01:24]} Nd7 {[%clk
01:14:07]} {[%emt 00:03:29]} 13. Rfd1 {[%clk 01:23:06]} {[%emt 00:00:45]} Nc5
{[%clk 00:55:38]} {[%emt 00:19:00]} 14. Rac1 {[%clk 01:18:22]} {[%emt
00:05:13]} Rc8 {[%clk 00:41:43]} {[%emt 00:14:25]} 15. Bh3 {[%clk 01:14:59]}
{[%emt 00:03:52]} f5 {[%clk 00:36:28]} {[%emt 00:05:46]} 16. b4 {[%clk
01:08:48]} {[%emt 00:06:42]} Ne6 {[%clk 00:28:36]} {[%emt 00:08:21]} 17. Nd5
{[%clk 01:06:48]} {[%emt 00:02:29]} Nf6 {[%clk 00:25:18]} {[%emt 00:03:49]} 18.
Bg2 {[%clk 01:06:31]} {[%emt 00:00:47]} Ne4 {[%clk 00:20:33]} {[%emt 00:05:15]}
19. Nd4 {[%clk 01:05:16]} {[%emt 00:01:45]} Ng7 {[%clk 00:15:04]} {[%emt
00:05:59]} 20. Qb3 {[%clk 00:53:16]} {[%emt 00:12:30]} Kh8 {[%clk 00:14:48]}
{[%emt 00:00:45]} 21. e3 {[%clk 00:46:17]} {[%emt 00:07:29]} a6 {[%clk
00:11:51]} {[%emt 00:03:28]} 22. a4 {[%clk 00:37:13]} {[%emt 00:09:34]} e6
{[%clk 00:11:05]} {[%emt 00:01:16]} 23. Nc3 {[%clk 00:35:00]} {[%emt 00:02:43]}
Qe7 {[%clk 00:06:48]} {[%emt 00:04:48]} 24. Nxe4 {[%clk 00:32:33]} {[%emt
00:02:57]} fxe4 {[%clk 00:06:38]} {[%emt 00:00:39]} 25. b5 {[%clk 00:31:38]}
{[%emt 00:01:25]} axb5 {[%clk 00:04:12]} {[%emt 00:02:57]} 26. cxb5 {[%clk
00:30:22]} {[%emt 00:01:46]} Bd5 {[%clk 00:04:26]} {[%emt 00:00:15]} 27. Qb2
{[%clk 00:30:00]} {[%emt 00:00:53]} Rc5 {[%clk 00:04:22]} {[%emt 00:00:34]} 28.
Nc6 {[%clk 00:30:07]} {[%emt 00:00:22]} Qb7 {[%clk 00:03:07]} {[%emt 00:01:45]}
29. Nb4 {[%clk 00:29:11]} {[%emt 00:01:26]} Rfc8 {[%clk 00:01:56]} {[%emt
00:01:41]} 30. Na6 {[%clk 00:29:13]} {[%emt 00:00:28]} Rc4 {[%clk 00:01:55]}
{[%emt 00:00:31]} 31. Bf1 {[%clk 00:29:20]} {[%emt 00:00:24]} Rxa4 {[%clk
00:01:49]} {[%emt 00:00:36]} 32. Qf6 {[%clk 00:27:58]} {[%emt 00:01:51]} Qa8
{[%clk 00:01:22]} {[%emt 00:00:58]} 33. Rxc8+ {[%clk 00:26:48]} {[%emt
00:01:40]} Qxc8 {[%clk 00:01:48]} {[%emt 00:00:03]} 34. Rc1 {[%clk 00:27:13]}
{[%emt 00:00:06]} Qg8 {[%clk 00:00:51]} {[%emt 00:01:27]} 35. Rc7 {[%clk
00:27:41]} {[%emt 00:00:01]} e5 {[%clk 00:01:08]} {[%emt 00:00:14]} 36. Rd7
{[%clk 00:27:03]} {[%emt 00:01:07]} Ra1 {[%clk 00:00:58]} {[%emt 00:00:40]} 37.
Kg2 {[%clk 00:25:46]} {[%emt 00:01:47]} Rxf1 {[%clk 00:01:12]} {[%emt
00:00:17]} 38. Kxf1 {[%clk 00:25:28]} {[%emt 00:00:48]} Bc4+ {[%clk 00:01:37]}
{[%emt 00:00:05]} 39. Kg2 {[%clk 00:25:27]} {[%emt 00:00:30]} Bxb5 {[%clk
00:01:57]} {[%emt 00:00:10]} 40. Rd8 {[%clk 00:55:44]} {[%emt 00:00:12]} Bxa6
{[%clk 00:32:18]} {[%emt 00:00:11]} 41. Rxg8+ {[%clk 00:55:48]} {[%emt
00:00:26]} Kxg8 {[%clk 00:32:42]} {[%emt 00:00:05]} 42. Qxd6 {[%clk 00:56:04]}
{[%emt 00:00:15]} Be2 {[%clk 00:27:07]} {[%emt 00:06:04]} 43. Qd5+ {[%clk
00:56:27]} {[%emt 00:00:07]} Kf8 {[%clk 00:27:32]} {[%emt 00:00:05]} 44. Qxe4
{[%clk 00:56:47]} {[%emt 00:00:10]} b5 {[%clk 00:27:55]} {[%emt 00:00:07]} 45.
Qxe5 {[%clk 00:57:11]} {[%emt 00:00:06]} Bc4 {[%clk 00:28:16]} {[%emt
00:00:09]} 46. e4 {[%clk 00:57:23]} {[%emt 00:00:18]} Kf7 {[%clk 00:28:01]}
{[%emt 00:00:46]} 47. f4 {[%clk 00:57:44]} {[%emt 00:00:09]} Ne8 {[%clk
00:27:15]} {[%emt 00:01:16]} 48. g4 {[%clk 00:57:31]} {[%emt 00:00:42]} h6
{[%clk 00:26:46]} {[%emt 00:00:59]} 49. h4 {[%clk 00:57:33]} {[%emt 00:00:27]}
Nf6 {[%clk 00:26:34]} {[%emt 00:00:43]} 50. Qc7+ {[%clk 00:57:24]} {[%emt
00:00:39]} Kf8 {[%clk 00:26:14]} {[%emt 00:00:50]} 51. e5 {[%clk 00:57:28]}
{[%emt 00:00:26]} 1-0

[Event "I.A Hrvatska šahovska liga"]
[Site "Veli Lošinj, Croatia"]
[Date "2024.10.05"]
[Round "1.10"]
[White "Biti, Ozren"]
[Black "Tica, Sven"]
[Result "0-1"]
[TimeControl "90 30 40 30"]
[WhiteFideId "14505096"]
[BlackFideId "14526948"]
[WhiteElo "2284"]
[BlackElo "2419"]

1. e4 {[%clk 01:30:53]} {[%emt 00:00:07]} c6 {[%clk 01:30:52]} {[%emt
00:00:09]} 2. Nf3 {[%clk 01:31:05]} {[%emt 00:00:17]} d5 {[%clk 01:31:15]}
{[%emt 00:00:07]} 3. d3 {[%clk 01:31:24]} {[%emt 00:00:11]} g6 {[%clk
01:31:24]} {[%emt 00:00:19]} 4. Nbd2 {[%clk 01:31:25]} {[%emt 00:00:32]} Bg7
{[%clk 01:31:34]} {[%emt 00:00:20]} 5. g3 {[%clk 01:31:39]} {[%emt 00:00:16]}
Nh6 {[%clk 01:31:35]} {[%emt 00:00:28]} 6. Bg2 {[%clk 01:29:40]} {[%emt
00:02:30]} O-O {[%clk 01:31:53]} {[%emt 00:00:12]} 7. O-O {[%clk 01:25:47]}
{[%emt 00:04:23]} e5 {[%clk 01:32:06]} {[%emt 00:00:17]} 8. c3 {[%clk
01:19:02]} {[%emt 00:07:15]} Be6 {[%clk 01:15:15]} {[%emt 00:17:20]} 9. Re1
{[%clk 01:03:16]} {[%emt 00:16:16]} Nd7 {[%clk 01:00:40]} {[%emt 00:15:05]} 10.
d4 {[%clk 00:47:53]} {[%emt 00:15:53]} f6 {[%clk 00:54:52]} {[%emt 00:06:18]}
11. h3 {[%clk 00:38:59]} {[%emt 00:09:24]} Nf7 {[%clk 00:52:01]} {[%emt
00:03:21]} 12. b3 {[%clk 00:32:08]} {[%emt 00:07:21]} Re8 {[%clk 00:44:35]}
{[%emt 00:07:56]} 13. Qc2 {[%clk 00:19:30]} {[%emt 00:13:09]} Rc8 {[%clk
00:39:48]} {[%emt 00:05:17]} 14. Ba3 {[%clk 00:12:19]} {[%emt 00:07:41]} dxe4
{[%clk 00:30:20]} {[%emt 00:09:57]} 15. Nxe4 {[%clk 00:12:24]} {[%emt
00:00:25]} f5 {[%clk 00:30:40]} {[%emt 00:00:10]} 16. Nd6 {[%clk 00:09:07]}
{[%emt 00:03:47]} Nxd6 {[%clk 00:31:02]} {[%emt 00:00:08]} 17. Bxd6 {[%clk
00:09:27]} {[%emt 00:00:11]} e4 {[%clk 00:31:21]} {[%emt 00:00:11]} 18. Ne5
{[%clk 00:08:18]} {[%emt 00:01:39]} c5 {[%clk 00:31:12]} {[%emt 00:00:39]} 19.
Qb2 {[%clk 00:03:01]} {[%emt 00:05:46]} cxd4 {[%clk 00:26:55]} {[%emt
00:04:47]} 20. cxd4 {[%clk 00:03:27]} {[%emt 00:00:04]} Qb6 {[%clk 00:27:06]}
{[%emt 00:00:18]} 21. Qa3 {[%clk 00:01:43]} {[%emt 00:02:16]} Qxd4 {[%clk
00:21:24]} {[%emt 00:06:12]} 22. Rad1 {[%clk 00:01:16]} {[%emt 00:00:57]} Qb6
{[%clk 00:21:29]} {[%emt 00:00:24]} 23. Nxd7 {[%clk 00:01:14]} {[%emt
00:00:33]} Bxd7 {[%clk 00:21:52]} {[%emt 00:00:06]} 24. Bf4 {[%clk 00:00:57]}
{[%emt 00:00:47]} Bd4 {[%clk 00:20:40]} {[%emt 00:01:43]} 25. Re2 {[%clk
00:00:40]} {[%emt 00:00:47]} Bb5 {[%clk 00:20:36]} {[%emt 00:00:33]} 26. Red2
{[%clk 00:00:49]} {[%emt 00:00:22]} Bd3 {[%clk 00:19:24]} {[%emt 00:01:42]} 27.
Bf1 {[%clk 00:00:31]} {[%emt 00:00:48]} Rc3 {[%clk 00:14:29]} {[%emt 00:05:25]}
28. Qa4 {[%clk 00:00:36]} {[%emt 00:00:25]} Re6 {[%clk 00:12:14]} {[%emt
00:02:44]} 29. Qd7 {[%clk 00:00:33]} {[%emt 00:00:33]} Bc5 {[%clk 00:05:08]}
{[%emt 00:07:37]} 30. Bxd3 {[%clk 00:00:41]} {[%emt 00:00:22]} Rxd3 {[%clk
00:05:27]} {[%emt 00:00:10]} 31. Rxd3 {[%clk 00:00:46]} {[%emt 00:00:26]} exd3
{[%clk 00:04:58]} {[%emt 00:00:58]} 32. Rxd3 {[%clk 00:00:35]} {[%emt
00:00:42]} Bxf2+ {[%clk 00:05:01]} {[%emt 00:00:27]} 33. Kg2 {[%clk 00:00:36]}
{[%emt 00:00:29]} Bc5 {[%clk 00:04:46]} {[%emt 00:00:44]} 34. Qd8+ {[%clk
00:00:32]} {[%emt 00:00:36]} Qxd8 {[%clk 00:04:58]} {[%emt 00:00:17]} 35. Rxd8+
{[%clk 00:01:00]} {[%emt 00:00:02]} Kf7 {[%clk 00:05:14]} {[%emt 00:00:13]} 36.
Kf3 {[%clk 00:00:59]} {[%emt 00:00:32]} Bb6 {[%clk 00:05:21]} {[%emt 00:00:22]}
37. Rh8 {[%clk 00:00:39]} {[%emt 00:00:51]} Kg7 {[%emt 00:00:42]} 38. Rb8
{[%clk 00:00:34]} Re7 {[%clk 00:06:06]} {[%emt 00:00:06]} 39. g4 {[%clk
00:00:38]} {[%emt 00:00:28]} fxg4+ {[%clk 00:06:10]} {[%emt 00:00:25]} 40. hxg4
{[%clk 00:30:47]} {[%emt 00:00:21]} Rf7 {[%clk 00:36:14]} {[%emt 00:00:25]} 0-1

[Event "I.A Hrvatska šahovska liga"]
[Site "Veli Lošinj, Croatia"]
[Date "2024.10.05"]
[Round "1.11"]
[White "Novosel, Lovro"]
[Black "Bosnjak, Petar"]
[Result "1-0"]
[TimeControl "90 30 40 30"]
[WhiteFideId "14547120"]
[BlackFideId "14532581"]
[WhiteElo "2336"]
[BlackElo "2337"]

1. d4 {[%clk 01:30:55]} {[%emt 00:00:04]} Nf6 {[%clk 01:30:55]} {[%emt
00:00:06]} 2. Nf3 {[%clk 01:31:12]} {[%emt 00:00:12]} d5 {[%clk 01:31:20]}
{[%emt 00:00:06]} 3. c4 {[%clk 01:31:32]} {[%emt 00:00:10]} e6 {[%clk
01:31:44]} {[%emt 00:00:06]} 4. g3 {[%clk 01:31:49]} {[%emt 00:00:13]} Be7
{[%clk 01:32:09]} {[%emt 00:00:05]} 5. Bg2 {[%clk 01:31:50]} {[%emt 00:00:29]}
O-O {[%clk 01:32:28]} {[%emt 00:00:11]} 6. O-O {[%clk 01:32:06]} {[%emt
00:00:14]} dxc4 {[%clk 01:32:47]} {[%emt 00:00:11]} 7. Ne5 {[%clk 01:31:21]}
{[%emt 00:01:15]} c5 {[%clk 01:32:11]} {[%emt 00:01:06]} 8. dxc5 {[%clk
01:31:07]} {[%emt 00:00:45]} Qc7 {[%clk 01:31:57]} {[%emt 00:00:43]} 9. Nxc4
{[%clk 01:31:17]} {[%emt 00:00:20]} Qxc5 {[%clk 01:31:49]} {[%emt 00:00:38]} 10.
b3 {[%clk 01:31:04]} {[%emt 00:00:43]} Rd8 {[%clk 01:30:53]} {[%emt 00:01:26]}
11. Nbd2 {[%clk 01:31:19]} {[%emt 00:00:15]} Qc7 {[%clk 01:30:37]} {[%emt
00:00:46]} 12. Bb2 {[%clk 01:30:23]} {[%emt 00:01:25]} Nc6 {[%clk 01:30:28]}
{[%emt 00:00:40]} 13. Rc1 {[%clk 01:28:51]} {[%emt 00:02:02]} Bd7 {[%clk
01:29:02]} {[%emt 00:01:56]} 14. a3 {[%clk 01:26:04]} {[%emt 00:03:17]} Be8
{[%clk 01:23:16]} {[%emt 00:06:16]} 15. b4 {[%clk 01:19:42]} {[%emt 00:06:53]}
Rac8 {[%clk 00:56:51]} {[%emt 00:26:54]} 16. Qe1 {[%clk 01:16:51]} {[%emt
00:03:21]} b5 {[%clk 00:53:28]} {[%emt 00:03:53]} 17. Na5 {[%clk 01:15:39]}
{[%emt 00:01:42]} Qb6 {[%clk 00:53:31]} {[%emt 00:00:28]} 18. Ndb3 {[%clk
01:15:27]} {[%emt 00:00:41]} Ng4 {[%clk 00:43:35]} {[%emt 00:10:24]} 19. e3
{[%clk 00:49:40]} {[%emt 00:26:19]} Nge5 {[%clk 00:32:04]} {[%emt 00:12:01]} 20.
Nxc6 {[%clk 00:41:31]} {[%emt 00:08:39]} Nxc6 {[%clk 00:32:27]} {[%emt
00:00:07]} 21. Qe2 {[%clk 00:41:38]} {[%emt 00:00:22]} Bf8 {[%clk 00:25:41]}
{[%emt 00:07:16]} 22. Rc2 {[%clk 00:31:41]} {[%emt 00:10:28]} Ne7 {[%clk
00:18:33]} {[%emt 00:07:38]} 23. Rfc1 {[%clk 00:25:42]} {[%emt 00:06:29]} Rxc2
{[%clk 00:18:16]} {[%emt 00:00:46]} 24. Rxc2 {[%clk 00:24:16]} {[%emt
00:01:57]} Rc8 {[%clk 00:17:50]} {[%emt 00:00:56]} 25. Bd4 {[%clk 00:22:36]}
{[%emt 00:02:10]} Qa6 {[%clk 00:14:35]} {[%emt 00:03:45]} 26. Nc5 {[%clk
00:16:38]} {[%emt 00:06:27]} Qd6 {[%clk 00:10:59]} {[%emt 00:04:05]} 27. Ne4
{[%clk 00:14:33]} {[%emt 00:02:36]} Qb8 {[%clk 00:09:24]} {[%emt 00:02:05]} 28.
Rxc8 {[%clk 00:14:35]} {[%emt 00:00:29]} Nxc8 {[%clk 00:07:04]} {[%emt
00:02:50]} 29. Nf6+ {[%clk 00:14:30]} {[%emt 00:00:35]} 1-0

[Event "I.A Hrvatska šahovska liga"]
[Site "Veli Lošinj, Croatia"]
[Date "2024.10.05"]
[Round "1.12"]
[White "Tomulic, Teo"]
[Black "Muskardin, Mario"]
[Result "1-0"]
[TimeControl "90 30 40 30"]
[WhiteFideId "14527006"]
[BlackFideId "14518180"]
[WhiteElo "2346"]
[BlackElo "2385"]

1. e4 {[%clk 01:30:58]} {[%emt 00:00:03]} d6 {[%clk 01:30:44]} {[%emt
00:00:16]} 2. f4 {[%clk 01:29:09]} {[%emt 00:02:18]} e5 {[%clk 01:29:52]}
{[%emt 00:01:22]} 3. Nf3 {[%clk 01:28:21]} {[%emt 00:01:19]} exf4 {[%clk
01:29:13]} {[%emt 00:01:08]} 4. d4 {[%clk 01:24:58]} {[%emt 00:03:53]} g5
{[%clk 01:27:51]} {[%emt 00:01:53]} 5. Bc4 {[%clk 01:21:12]} {[%emt 00:04:16]}
g4 {[%clk 01:24:30]} {[%emt 00:03:51]} 6. O-O {[%clk 01:07:55]} {[%emt
00:13:47]} gxf3 {[%clk 01:24:37]} {[%emt 00:00:23]} 7. Qxf3 {[%clk 01:01:06]}
{[%emt 00:07:19]} Bh6 {[%clk 01:15:15]} {[%emt 00:09:52]} 8. Bxf4 {[%clk
00:50:00]} {[%emt 00:11:36]} Qf6 {[%clk 01:13:31]} {[%emt 00:02:13]} 9. Qe3
{[%clk 00:49:24]} {[%emt 00:01:06]} Be6 {[%clk 01:04:15]} {[%emt 00:09:46]} 10.
d5 {[%clk 00:43:03]} {[%emt 00:06:51]} Bc8 {[%clk 00:57:25]} {[%emt 00:07:20]}
11. e5 {[%clk 00:29:18]} {[%emt 00:14:16]} Bxf4 {[%clk 00:56:52]} {[%emt
00:01:02]} 12. Rxf4 {[%clk 00:29:44]} {[%emt 00:00:04]} Qe7 {[%clk 00:56:14]}
{[%emt 00:01:08]} 13. e6 {[%clk 00:27:22]} {[%emt 00:02:53]} fxe6 {[%clk
00:43:31]} {[%emt 00:13:13]} 14. dxe6 {[%clk 00:27:47]} {[%emt 00:00:04]} Nf6
{[%clk 00:32:44]} {[%emt 00:11:16]} 15. Nc3 {[%clk 00:24:28]} {[%emt 00:03:50]}
Kd8 {[%clk 00:23:36]} {[%emt 00:09:38]} 16. Qd4 {[%clk 00:13:06]} {[%emt
00:11:52]} Rf8 {[%clk 00:14:21]} {[%emt 00:09:45]} 17. Nd5 {[%clk 00:06:48]}
{[%emt 00:06:49]} Nxd5 {[%clk 00:11:53]} {[%emt 00:02:58]} 18. Rxf8+ {[%clk
00:07:06]} {[%emt 00:00:12]} Qxf8 {[%clk 00:12:18]} {[%emt 00:00:04]} 19. Rf1
{[%clk 00:06:40]} {[%emt 00:00:57]} Qe8 {[%clk 00:11:31]} {[%emt 00:01:17]} 20.
Bxd5 {[%clk 00:04:59]} {[%emt 00:02:11]} Bxe6 {[%clk 00:10:45]} {[%emt
00:01:15]} 21. Bxb7 {[%clk 00:04:46]} {[%emt 00:00:43]} Nc6 {[%clk 00:09:51]}
{[%emt 00:01:24]} 22. Bxc6 {[%clk 00:03:57]} {[%emt 00:01:20]} Qxc6 {[%clk
00:09:31]} {[%emt 00:00:49]} 23. Rf8+ {[%clk 00:04:14]} {[%emt 00:00:13]} 1-0

[Event "I.A Hrvatska šahovska liga"]
[Site "Veli Lošinj, Croatia"]
[Date "2024.10.05"]
[Round "1.13"]
[White "Dudin, Gleb"]
[Black "Chigaev, Maksim"]
[Result "1/2-1/2"]
[TimeControl "90 30 40 30"]
[WhiteFideId "34184934"]
[BlackFideId "4108116"]
[WhiteElo "2545"]
[BlackElo "2624"]

1. e4 {[%clk 01:25:14]} {[%emt 00:05:45]} e5 {[%clk 01:28:52]} {[%emt
00:02:09]} 2. Nf3 {[%clk 01:25:24]} {[%emt 00:00:20]} Nc6 {[%clk 01:29:13]}
{[%emt 00:00:09]} 3. Bb5 {[%clk 01:25:43]} {[%emt 00:00:11]} a6 {[%clk
01:29:23]} {[%emt 00:00:19]} 4. Ba4 {[%clk 01:25:59]} {[%emt 00:00:15]} Nf6
{[%clk 01:29:35]} {[%emt 00:00:17]} 5. O-O {[%clk 01:26:12]} {[%emt 00:00:17]}
Be7 {[%clk 01:29:57]} {[%emt 00:00:09]} 6. d3 {[%clk 01:25:44]} {[%emt
00:00:58]} d6 {[%clk 01:30:19]} {[%emt 00:00:08]} 7. a3 {[%clk 01:25:44]}
{[%emt 00:00:30]} b5 {[%clk 01:21:56]} {[%emt 00:08:53]} 8. Bb3 {[%clk
01:26:03]} {[%emt 00:00:11]} Na5 {[%clk 01:22:15]} {[%emt 00:00:10]} 9. Ba2
{[%clk 01:26:13]} {[%emt 00:00:20]} c5 {[%clk 01:22:37]} {[%emt 00:00:09]} 10.
Nc3 {[%clk 01:13:07]} {[%emt 00:13:35]} Be6 {[%clk 01:22:48]} {[%emt 00:00:19]}
11. Bg5 {[%clk 01:05:17]} {[%emt 00:08:20]} Rc8 {[%clk 01:22:47]} {[%emt
00:00:31]} 12. Nh4 {[%clk 00:56:15]} {[%emt 00:09:32]} c4 {[%clk 01:21:09]}
{[%emt 00:02:09]} 13. Nf5 {[%clk 00:54:30]} {[%emt 00:02:15]} Bxf5 {[%clk
01:21:28]} {[%emt 00:00:11]} 14. exf5 {[%clk 00:54:52]} {[%emt 00:00:08]} d5
{[%clk 01:21:50]} {[%emt 00:00:08]} 15. Qf3 {[%clk 00:50:18]} {[%emt 00:05:03]}
d4 {[%clk 01:04:46]} {[%emt 00:17:34]} 16. Bxf6 {[%clk 00:49:48]} {[%emt
00:01:01]} Bxf6 {[%clk 01:04:00]} {[%emt 00:01:16]} 17. Ne4 {[%clk 00:49:53]}
{[%emt 00:00:24]} O-O {[%clk 01:04:09]} {[%emt 00:00:21]} 18. Rfe1 {[%clk
00:38:32]} {[%emt 00:11:51]} Kh8 {[%clk 00:45:14]} {[%emt 00:19:26]} 19. Re2
{[%clk 00:35:20]} {[%emt 00:03:42]} Qe7 {[%clk 00:43:15]} {[%emt 00:02:29]} 20.
g4 {[%clk 00:23:54]} {[%emt 00:11:55]} Nb7 {[%clk 00:36:04]} {[%emt 00:07:41]}
21. Rae1 {[%clk 00:22:33]} {[%emt 00:01:51]} Nc5 {[%clk 00:31:54]} {[%emt
00:04:40]} 22. Nd2 {[%clk 00:05:19]} {[%emt 00:17:45]} Na4 {[%clk 00:27:39]}
{[%emt 00:04:45]} 23. dxc4 {[%clk 00:05:17]} {[%emt 00:00:32]} Nxb2 {[%clk
00:27:34]} {[%emt 00:00:35]} 24. cxb5 {[%clk 00:04:11]} {[%emt 00:01:36]} axb5
{[%clk 00:20:15]} {[%emt 00:07:49]} 25. Ne4 {[%clk 00:02:26]} {[%emt 00:02:15]}
Na4 {[%clk 00:18:32]} {[%emt 00:02:12]} 26. Qd3 {[%clk 00:01:51]} {[%emt
00:01:05]} Nc3 {[%clk 00:11:09]} {[%emt 00:07:53]} 27. Nxc3 {[%clk 00:02:11]}
{[%emt 00:00:10]} Rxc3 {[%clk 00:11:33]} {[%emt 00:00:06]} 28. Qxb5 {[%clk
00:02:20]} {[%emt 00:00:21]} Qxa3 {[%clk 00:11:09]} {[%emt 00:00:54]} 29. Bd5
{[%clk 00:01:36]} {[%emt 00:01:13]} h6 {[%clk 00:06:14]} {[%emt 00:05:26]} 30.
Qb7 {[%clk 00:00:41]} {[%emt 00:01:24]} Kg8 {[%clk 00:02:31]} {[%emt 00:04:13]}
31. Kg2 {[%clk 00:01:04]} {[%emt 00:00:08]} Qd6 {[%clk 00:01:20]} {[%emt
00:01:42]} 32. Be4 {[%clk 00:01:10]} {[%emt 00:00:23]} Rb8 {[%clk 00:01:26]}
{[%emt 00:00:25]} 33. Qd5 {[%clk 00:00:34]} {[%emt 00:01:06]} Qxd5 {[%clk
00:01:19]} {[%emt 00:00:36]} 1/2-1/2